Cogmind - Beta 13 @@@ ROGUE MODE // 2024.04.06 @ 16:17:55 Player: Sixten Result: Destroyed by Y-54 Guardian with Gatling Laser Performance ------------- Evolutions (3) 1500 Regions Visited (8) 1600 Robots Destroyed (97) 485 Value Destroyed (2321) 2321 Prototype IDs (25) 500 Alien Tech Used (0) 0 Bonus (527) 527 TOTAL SCORE: 6933 Bonus ------- High Alert Combat Kills 162 Follower Combat Kills 74 Aligned with FarCom 300 Friendly Fire -9 Cogmind --------- Core Integrity 0/700 Matter 300/300 Energy 70/100 System Corruption 2% Temperature Cool (6) Movement Core (50) Location -7/Factory Parts ------- > --- POWER (1) -------- (None) > --- PROPULSION (4) --- (None) > --- UTILITY (6) ------ Targeting Computer Targeting Computer Targeting Computer Microactuators > --- WEAPON (2) ------- (None) > --- INVENTORY (5) ---- Improved Ion Engine Micro Nuclear Core Flight Unit Improved Light Armor Plating Heavy Ion Cannon Peak State ------------ > --- POWER ------------ Deuterium Engine > --- PROPULSION ------- VTOL Module VTOL Module VTOL Module VTOL Module > --- UTILITY ---------- Improved Melee Analysis Suite Microactuators Improved Light Armor Plating > --- WEAPON ----------- Light Assault Rifle Longsword +1 > --- INVENTORY -------- Improved Ion Engine Micro Nuclear Core Flight Unit Flight Unit Flight Unit [Rating: 31] Favorites ----------- Power Reinforced Ion Engine Engine Reinforced Ion Engine Propulsion Light Treads Treads Light Treads Hover Unit Improved Hover Unit Flight Unit VTOL Module Utility Large Storage Unit Device Microactuators Storage Large Storage Unit Processor Improved Melee Analysis Suite Protection Light Armor Plating Weapon Light Assault Rifle Energy Gun Heavy EM Pulse Gun Ballistic Gun Light Assault Rifle Slashing Weapon Axe Build | -11 -10 -10 -9 -9 -9 -8 -8 -7 ------- Run | Yrd Mat Min Mat Min Exi Min Mat Fac Slots Evolved 6 | . . . 2 . . . 2 2 Power . | . . . . . . . . . Propulsion 2 | . . . 2 . . . . . Utility 4 | . . . . . . . 2 2 Weapon . | . . . . . . . . . Parts Attached 67 | 6 3 . 25 . . . 21 12 Power 5 | 1 . . 3 . . . 1 . Engine 5 | 1 . . 3 . . . 1 . Core . | . . . . . . . . . Reactor . | . . . . . . . . . Propulsion 31 | 2 . . 12 . . . 14 3 Treads 24 | 2 . . 12 . . . 10 . Leg . | . . . . . . . . . Wheel . | . . . . . . . . . Hover 1 | . . . . . . . . 1 Flight 6 | . . . . . . . 4 2 Utility 15 | 1 3 . 4 . . . 2 5 Device 1 | . . . . . . . . 1 Storage 2 | 1 1 . . . . . . . Processor 4 | . . . . . . . . 4 Hackware . | . . . . . . . . . Protection 8 | . 2 . 4 . . . 2 . Artifact . | . . . . . . . . . Weapon 16 | 2 . . 6 . . . 4 4 Energy Gun 4 | . . . 1 . . . 2 1 Energy Cannon . | . . . . . . . . . Ballistic Gun 10 | 2 . . 5 . . . 1 2 Ballistic Cannon . | . . . . . . . . . Launcher . | . . . . . . . . . Special Weapon . | . . . . . . . . . Impact Weapon . | . . . . . . . . . Slashing Weapon 2 | . . . . . . . 1 1 Piercing Weapon . | . . . . . . . . . Special Melee Weapon . | . . . . . . . . . Unidentified Prototypes 2 | . . . 1 . . . 1 . Parts Lost 40 | . 1 . 11 . . . 13 15 Power 4 | . . . 2 . . . 1 1 Propulsion 15 | . . . 2 . . . 6 7 Utility 7 | . 1 . 3 . . . 2 1 Weapon 14 | . . . 4 . . . 4 6 Highest Loss Streak 9 | . 1 . 2 . . . 7 9 To Critical Strikes . | . . . . . . . . . Average Slot Usage (%) 87 | . 97 100 88 100 100 100 60 48 Engine 8 | . 14 14 6 11 11 11 6 1 Treads 34 | . 28 28 40 44 44 44 18 . Flight 1 | . . . . . . . 4 11 Storage 10 | . 14 14 11 11 11 11 8 . Protection 9 | . 11 14 8 11 11 11 6 1 Ballistic Gun 19 | . 28 28 21 22 22 22 9 1 Naked Turns . | . . . . . . . . . Heaviest Build 38 | 12 30 30 37 35 35 35 38 18 Greatest Support 80 | 40 40 40 80 80 80 80 80 16 Greatest Overweight (x) 10 | . . . . . . . 10 2 Average Overweight (x) . | . . . . . . . . . Largest Inventory Capacity 15 | 8 15 15 15 15 15 15 15 5 Average Capacity 13 | 6 9 15 15 15 15 15 13 5 Most Carried 15 | . 8 8 15 15 15 15 15 5 Average Carried 11 | . 5 7 12 15 14 15 12 4 Final Capacity 15 | 8 15 15 15 15 15 15 5 5 Final Carried 15 | . 7 8 15 15 15 15 4 5 Class Distribution -------------------- 61% | Scavenger-Mutant 35% | Mutant Dominant Class ---------------- Mutant | -10/Materials Mutant | -10/Mines Scavenger-Mutant | -9/Materials Scavenger-Mutant | -9/Mines Scavenger-Mutant | -9/Exiles Scavenger-Mutant | -8/Mines Scavenger-Mutant | -8/Materials Mutant | -7/Factory Resources | -11 -10 -10 -9 -9 -9 -8 -8 -7 ----------- Run | Yrd Mat Min Mat Min Exi Min Mat Fac Matter Collected 2198 | 257 120 4 1362 61 . 52 262 80 Remotely . | . . . . . . . . . Salvage Created 3424 | . 388 28 1980 70 . . 714 244 Parts 230 | . 29 4 127 11 . . 42 17 Haulers Intercepted 6 | . 1 . 4 . . . 1 . Recyclers Shooed . | . . . . . . . . . Parts Field Recycled . | . . . . . . . . . Retrieved Matter . | . . . . . . . . . Parts Self-Destructed . | . . . . . . . . . Prevented . | . . . . . . . . . Kills | -11 -10 -10 -9 -9 -9 -8 -8 -7 ------- Run | Yrd Mat Min Mat Min Exi Min Mat Fac Combat Hostiles Destroyed 71 | . 9 . 42 4 . . 10 6 Melee 5 | . . . . . . . 1 4 Guns 64 | . 9 . 42 4 . . 9 . AOE 2 | . . . . . . . . 2 Classes Destroyed 14 | . 6 1 4 . . . 2 1 Worker 3 | . 1 . 2 . . . . . Builder 3 | . . 1 . . . . 1 1 Tunneler 1 | . . . . . . . . 1 Hauler 6 | . 1 . 4 . . . 1 . Recycler 3 | . . . . . . . 3 . Mechanic 1 | . 1 . . . . . . . Operator 1 | . . . 1 . . . . . Watcher 8 | . 2 . 5 . . . 1 . Swarmer 28 | . 6 . 11 4 . . 4 3 Grunt 30 | . 3 . 21 . . . 3 3 Brawler 2 | . . . 2 . . . . . Duelist 1 | . . . 1 . . . . . Sentry 9 | . . . 7 . . . 2 . Hunter 1 | . . . . . . . 1 . Best Kill Streak 5 | . 4 1 5 4 . . 5 4 Combat Bots Only 4 | . 3 . 4 4 . . 3 4 Max Kills in Single Turn 2 | . 1 1 2 1 . . 2 2 Gunslinging 1 | . . . 1 . . . 1 . Exploded 2 | . . . . . . . . 2 Melee 1 | . . . . . . . 1 1 Uniques/NPCs Destroyed . | . . . . . . . . . Combat | -11 -10 -10 -9 -9 -9 -8 -8 -7 -------- Run | Yrd Mat Min Mat Min Exi Min Mat Fac Hostile Shots Fired 626 | . 55 . 200 33 . . 204 134 Missed 188 | . 18 . 55 6 . . 64 45 Damage Taken 5698 | . 456 . 1790 222 . . 1790 1440 Core 1227 | . 87 . 160 30 . . 246 704 Absorbed by Shields . | . . . . . . . . . Core Remaining (%) 68 | 100 . 65 . . . 52 55 . Volleys Fired 326 | . 46 2 192 11 . . 65 10 Largest 2 | . 2 2 2 2 . . 2 1 Hottest 106 | . 40 40 46 40 . . 106 45 Shots Fired 596 | . 92 4 359 21 . . 110 10 Gun 596 | . 92 4 359 21 . . 110 10 Cannon . | . . . . . . . . . Launcher . | . . . . . . . . . Special . | . . . . . . . . . Kinetic 570 | . 92 4 359 21 . . 92 2 Thermal 11 | . . . . . . . 11 . Explosive . | . . . . . . . . . Electromagnetic 15 | . . . . . . . 7 8 Robot Hit Streak 14 | . 9 1 11 3 . . 14 6 Robot Miss Streak 6 | . 6 2 5 4 . . 6 1 Penetration Max . | . . . . . . . . . Secondary Targets 12 | . 1 . 7 1 . . 3 . Max Gunslinging Chain 1 | . 1 . 1 1 . . 1 . Shots Hit Robots 377 | . 59 1 209 10 . . 76 22 Core Hits 172 | . 28 1 87 6 . . 39 11 Critical Kills 1 | . . 1 . . . . . . Critical Parts Destroyed 5 | . 1 . 2 . . . 2 . Critical Strikes 8 | . 1 1 3 . . . 2 1 Destroy 7 | . 1 1 3 . . . 2 . Sever 1 | . . . . . . . . 1 Melee Attacks 38 | . . . . . . . 11 27 Impact . | . . . . . . . . . Slashing 38 | . . . . . . . 11 27 Piercing . | . . . . . . . . . Sneak Attacks 4 | . . . . . . . 1 3 Combat Hostiles . | . . . . . . . . . Follow-up Attacks . | . . . . . . . . . Damage Inflicted 5480 | . 495 7 2822 138 . . 888 1130 Guns 4210 | . 495 7 2817 112 . . 739 40 Cannons . | . . . . . . . . . Explosions 308 | . . . . . . . . 308 Melee 895 | . . . . . . . 149 746 Ramming 67 | . . . 5 26 . . . 36 Kinetic 3936 | . 495 7 2817 112 . . 498 7 Thermal 460 | . . . . . . . 152 308 Explosive . | . . . . . . . . . Electromagnetic 122 | . . . . . . . 89 33 Impact . | . . . . . . . . . Slashing 895 | . . . . . . . 149 746 Piercing . | . . . . . . . . . Highest Corruption 3 | . . . 3 3 3 3 . 2 Average Corruption 2 | . . . 3 3 3 3 . 1 Corruption Purged . | . . . . . . . . . Corruption Blocked . | . . . . . . . . . Effects 61 | . . . 8 31 13 9 . . Message Errors 18 | . . . 2 6 7 3 . . Matter Fused 13 | . . . 3 7 1 2 . . Heat Flow Errors 8 | . . . 1 5 1 1 . . Energy Discharges 7 | . . . . 3 2 2 . . Parts Fused 1 | . . . . 1 . . . . Data Loss (minor) 6 | . . . 1 5 . . . . Data Loss (major) 3 | . . . 1 1 . 1 . . Misfires 1 | . . . . 1 . . . . Alerts 2 | . . . . . 2 . . . Weapon Failures 2 | . . . . 2 . . . . Overload Shots . | . . . . . . . . . Overflow Damage 289 | . . . . . . . 62 227 Projectiles . | . . . . . . . . . Explosions 90 | . . . . . . . . 90 Melee 199 | . . . . . . . 62 137 Knockbacks . | . . . . . . . . . Impact . | . . . . . . . . . Kinetic . | . . . . . . . . . Secondary . | . . . . . . . . . Self-Inflicted Damage 254 | . 82 . . . . . . 172 Shots 3 | . 1 . . . . . . 2 Rammed 13 | . . . 1 4 . . . 8 Targets Rammed 13 | . . . 1 4 . . . 8 Kicked . | . . . . . . . . . Crushed . | . . . . . . . . . Highest Temperature 279 | . 18 6 279 264 243 206 219 6 Average Temperature 41 | . 7 4 19 79 125 105 65 5 Received Heat Transfer 1599 | . 99 . 669 . . . 513 318 Siege Activations . | . . . . . . . . . Robots Corrupted . | . . . . . . . . . Combat Hostiles . | . . . . . . . . . Parts Fried . | . . . . . . . . . Impact Corruptions . | . . . . . . . . . Robots Melted . | . . . . . . . . . Combat Hostiles . | . . . . . . . . . Parts Melted . | . . . . . . . . . Heat Transferred 533 | . . . . . . . 333 200 Parts Sabotaged . | . . . . . . . . . Parts Stolen . | . . . . . . . . . Parts Stripped . | . . . . . . . . . Power Chain Reactions . | . . . . . . . . . Alert | -11 -10 -10 -9 -9 -9 -8 -8 -7 ------- Run | Yrd Mat Min Mat Min Exi Min Mat Fac Peak Influence 789 | . 227 48 789 412 . 34 180 249 Initial 307 | . . 43 18 307 . . 13 14 Average 214 | . 121 45 364 189 . 5 84 105 Maximum Alert Level 3 | . 1 . 3 2 . . . 1 Low Security (%) 61 | 100 87 100 41 44 . 100 100 68 Level 1 15 | . 12 . 12 29 . . . 31 Level 2 19 | . . . 36 26 . . . . Level 3 4 | . . . 10 . . . . . Level 4 . | . . . . . . . . . Level 5 . | . . . . . . . . . High Security . | . . . . . . . . . Max Security . | . . . . . . . . . Squads Dispatched 12 | . . . 7 . . . 1 4 Investigation 2 | . . . 2 . . . . . Extermination 1 | . . . . . . . . 1 Reinforcement 8 | . . . 4 . . . 1 3 Assault 1 | . . . 1 . . . . . Garrison . | . . . . . . . . . Intercept . | . . . . . . . . . Searches Triggered . | . . . . . . . . . Construction Impeded 1 | . . . . . . . . 1 Haulers Reinforced . | . . . . . . . . . Active Scanning Responses . | . . . . . . . . . Cargo Convoy Interrupts . | . . . . . . . . . Stealth | -11 -10 -10 -9 -9 -9 -8 -8 -7 --------- Run | Yrd Mat Min Mat Min Exi Min Mat Fac Distress Signals 12 | . 4 . 4 . . . 2 2 Communications Jammed . | . . . . . . . . . Distress Signals . | . . . . . . . . . Times Spotted 139 | . 20 . 66 4 . 1 26 22 Peak Tracking Total 8 | . 6 . 5 4 . 1 7 8 Tactical Retreats 18 | . 4 . 8 . . . 1 5 Traps | -11 -10 -10 -9 -9 -9 -8 -8 -7 ------- Run | Yrd Mat Min Mat Min Exi Min Mat Fac Traps Triggered 3 | . . . 2 . . . . 1 Indirectly . | . . . . . . . . . Trap Hack Attempts . | . . . . . . . . . Triggered . | . . . . . . . . . Disarmed . | . . . . . . . . . Reprogrammed . | . . . . . . . . . Reused . | . . . . . . . . . Traps Extracted . | . . . . . . . . . Installed . | . . . . . . . . . Triggered . | . . . . . . . . . Machines | -11 -10 -10 -9 -9 -9 -8 -8 -7 ---------- Run | Yrd Mat Min Mat Min Exi Min Mat Fac Machines Disabled 5 | . 2 . 1 . . . . 2 Max in Single Turn 2 | . 2 . 1 . . . . 2 Machines Repaired . | . . . . . . . . . Machines Dismantled . | . . . . . . . . . Machines Sabotaged . | . . . . . . . . . Overloaded Fab Kills . | . . . . . . . . . Hacking | -11 -10 -10 -9 -9 -9 -8 -8 -7 --------- Run | Yrd Mat Min Mat Min Exi Min Mat Fac Machines Accessed 3 | . . . 1 . 1 . . 1 Terminals 2 | . . . 1 . . . . 1 Fabricators . | . . . . . . . . . Repair Stations . | . . . . . . . . . Recycling Units . | . . . . . . . . . Scanalyzers . | . . . . . . . . . Garrison Access . | . . . . . . . . . Total Hacks 3 | . . . 1 . 1 . . 1 Successful 2 | . . . 1 . 1 . . . Failed 1 | . . . . . . . . 1 Catastrophic 1 | . . . . . . . . 1 Database Lockouts . | . . . . . . . . . Manual 2 | . . . 1 . 1 . . . Terminals 2 | . . . 1 . . . . 1 Fabricators . | . . . . . . . . . Repair Stations . | . . . . . . . . . Recycling Units . | . . . . . . . . . Scanalyzers . | . . . . . . . . . Garrison Access . | . . . . . . . . . Terminal Hacks 2 | . . . 1 . 1 . . . Hauler Manifests 1 | . . . 1 . . . . . Derelict Proto ID Bank 1 | . . . . . 1 . . . Fabricator Hacks . | . . . . . . . . . Repair Station Hacks . | . . . . . . . . . Recycling Unit Hacks . | . . . . . . . . . Scanalyzer . | . . . . . . . . . Garrison Access Hacks . | . . . . . . . . . Unauthorized Hacks . | . . . . . . . . . Terminals . | . . . . . . . . . Fabricators . | . . . . . . . . . Repair Stations . | . . . . . . . . . Recycling Units . | . . . . . . . . . Scanalyzers . | . . . . . . . . . Garrison Access . | . . . . . . . . . Data Cores Recovered . | . . . . . . . . . Used . | . . . . . . . . . Hacking Detections 1 | . . . . . . . . 1 Full Trace Events . | . . . . . . . . . Feedback Events . | . . . . . . . . . Feedback Blocked . | . . . . . . . . . Robot Schematics Acquired . | . . . . . . . . . Robots Built . | . . . . . . . . . Authchips . | . . . . . . . . . Time . | . . . . . . . . . Total Robot Build Rating . | . . . . . . . . . Part Schematics Acquired . | . . . . . . . . . Parts Built . | . . . . . . . . . Authchips . | . . . . . . . . . Time . | . . . . . . . . . Total Part Build Rating . | . . . . . . . . . Parts Repaired . | . . . . . . . . . Time . | . . . . . . . . . Parts Recycled . | . . . . . . . . . Recycled Matter . | . . . . . . . . . Retrieved Matter . | . . . . . . . . . Retrieved Components . | . . . . . . . . . Parts Scanalyzed . | . . . . . . . . . Part Schematics Acquired . | . . . . . . . . . Parts Damaged . | . . . . . . . . . Bothacking | -11 -10 -10 -9 -9 -9 -8 -8 -7 ------------ Run | Yrd Mat Min Mat Min Exi Min Mat Fac Used RIF Installer . | . . . . . . . . . Robots Hacked . | . . . . . . . . . Non-combat . | . . . . . . . . . Combat . | . . . . . . . . . Robot Hacks Applied . | . . . . . . . . . Relay Couplers Released . | . . . . . . . . . Fabnet Peak Effective % . | . . . . . . . . . Robots Rewired . | . . . . . . . . . Allies Hacked . | . . . . . . . . . Hacks Repelled . | . . . . . . . . . Allies | -11 -10 -10 -9 -9 -9 -8 -8 -7 -------- Run | Yrd Mat Min Mat Min Exi Min Mat Fac Total Allies 3 | . . . . 3 . . . . Largest Group 3 | . . . . 3 3 3 2 . Highest-Rated Group 40 | . . . . 40 40 40 32 . Highest-Rated Ally 16 | . . . . 16 16 16 16 . Total Orders . | . . . . . . . . . Ally Attacks 27 | . . . . . . 14 13 . Total Damage 287 | . . . . . . 141 146 . Kills 2 | . . . . . . 1 1 . Allies Corrupted . | . . . . . . . . . Allies Melted . | . . . . . . . . . Intel | -11 -10 -10 -9 -9 -9 -8 -8 -7 ------- Run | Yrd Mat Min Mat Min Exi Min Mat Fac Robot Analysis Total . | . . . . . . . . . Derelict Logs Recovered 3 | . . 2 . 1 . . . . Drone Launches . | . . . . . . . . . Drone Recoveries . | . . . . . . . . . Exploration | -11 -10 -10 -9 -9 -9 -8 -8 -7 ------------- Run | Yrd Mat Min Mat Min Exi Min Mat Fac Turns Passed 7695 | 83 865 216 2765 1435 538 337 813 643 Spaces Moved 4368 | 49 419 132 1343 876 336 201 426 586 Core 75 | 3 . . . . . . 45 27 Treads 3530 | 46 419 132 1343 876 336 201 177 . Legs . | . . . . . . . . . Wheels . | . . . . . . . . . Hover 58 | . . . . . . . . 58 Flight 705 | . . . . . . . 204 501 Fastest Speed 26 | 50 160 160 160 160 160 160 26 26 Average Speed 147 | 153 160 160 160 160 160 160 133 84 Slowest Speed 675 | 160 160 160 160 160 160 160 675 192 Overloaded Moves . | . . . . . . . . . Propulsion Burnouts . | . . . . . . . . . Robots Hopped . | . . . . . . . . . Cave-ins Triggered . | . . . . . . . . . Exploration Rate (%) 46 | 4 52 45 76 97 61 48 26 11 Regions Visited 8 Branch Regions 4 Pre-discovered Areas 1 | . . 1 . . . . . . Known Exits Taken 1 | . . . . . . 1 . . Unknown Exits Taken 7 | 1 1 1 1 1 1 . 1 . Scrap Searched 3 | . . 1 . 1 . 1 . . Spaces Dug 17 | . . . . . . . 9 8 Terrain Destroyed 62 | . 11 . . . . . 9 42 Melee 17 | . . . . . . . 9 8 Projectile . | . . . . . . . . . AOE 45 | . 11 . . . . . . 34 Terrain Rammed . | . . . . . . . . . Walls Destroyed . | . . . . . . . . . Machines Disabled . | . . . . . . . . . Actions | -11 -10 -10 -9 -9 -9 -8 -8 -7 --------- Run | Yrd Mat Min Mat Min Exi Min Mat Fac Total 5120 | 54 540 134 1674 890 337 217 571 703 Wait 252 | . 64 . 89 . . 17 28 54 Move 4360 | 48 418 131 1342 875 335 200 425 586 Hop . | . . . . . . . . . Pick Up 31 | . 8 1 13 . 1 . 4 4 Fast Attach 34 | 6 1 . 9 . . . 9 9 Attach 17 | . 1 . 6 . . . 7 3 Detach 5 | . . . 1 . . . 3 1 Swap 16 | . 1 . 10 . . . 5 . Drop 28 | . 1 . 11 . 1 . 14 1 Fire 326 | . 46 2 192 11 . . 65 10 Melee 38 | . . . . . . . 11 27 Ram 8 | . . . . . . . . 8 Kick . | . . . . . . . . . Crush 5 | . . . 1 4 . . . . Escape Stasis . | . . . . . . . . . Rewire . | . . . . . . . . . Trap . | . . . . . . . . . Miscellaneous . | . . . . . . . . . Route ------- -11/Scrapyard -10/Materials (discovered 2 exits: *Mat / [*Min]) -10/Mines -9/Materials (discovered 4 exits: *Mat x3 / [*Min]) -9/Mines (discovered 3 exits: *Mat x2 / *Exi) -9/Exiles (discovered 2 exits: [*Min x2]) -8/Mines -8/Materials -7/Factory (discovered 1 exit: Low) History --------- Turn | Location | Event 17 | -11/Scrapyard | Discovered new exit (range 14) 84 | -11/Scrapyard | Entered Materials 316 | -10/Materials | Build established: Mutant 682 | -10/Materials | Discovered new exit (range 4) 822 | -10/Materials | Discovered new exit (range 15) 949 | -10/Materials | Entered Mines 968 | -10/Mines | Met a Derelict bent on vengeance 972 | -10/Mines | Learned location of 1 exit from Materials 1029 | -10/Mines | Learned location of Zion (-6) 1144 | -10/Mines | Discovered new exit (range 7) 1165 | -10/Mines | Entered Materials 1165 | -9/Materials | Evolved 2 slots: Propulsion x2 1166 | -9/Materials | Identified exit to Materials 1957 | -9/Materials | Discovered exit to Materials (range 9) 2204 | -9/Materials | Build established: Scavenger-Mutant 3376 | -9/Materials | Discovered exit to Materials (range 8) 3565 | -9/Materials | First assault squad dispatched 3772 | -9/Materials | Discovered new exit (range 16) 3930 | -9/Materials | Entered Mines 4085 | -9/Mines | Assisted by bots powering up and referring to "LRC-V3" 4113 | -9/Mines | Discovered exit to Materials (range 7) 4276 | -9/Mines | Discovered exit to Materials (range 11) 5354 | -9/Mines | Deemed a non-threat by the Exiles lab entrance 5356 | -9/Mines | Discovered new exit (range 5) 5365 | -9/Mines | Entered Exiles 5365 | -9/Exiles | Accompanied by 3 allies 5410 | -9/Exiles | Discovered new exit (range 15) 5461 | -9/Exiles | Met 8R-AWN 5487 | -9/Exiles | Met EX-HEX 5556 | -9/Exiles | Met EX-BIN 5586 | -9/Exiles | Aligned with FarCom system 5588 | -9/Exiles | Given EX-Vault access code 5639 | -9/Exiles | Opened EX-Vault 5705 | -9/Exiles | Found Longsword +1 5741 | -9/Exiles | Warned to stay clear of 0b10 Research branches 5796 | -9/Exiles | Met EX-DEC 5874 | -9/Exiles | Discovered new exit (range 12) 5903 | -9/Exiles | Left Exiles lab with Longsword +1 5903 | -9/Exiles | Entered Mines 5903 | -8/Mines | Accompanied by 3 allies 6223 | -8/Mines | Discovered exit to Materials (range 9) 6240 | -8/Mines | Entered Materials 6240 | -8/Materials | Accompanied by 2 allies 6240 | -8/Materials | Evolved 2 slots: Utility x2 6688 | -8/Materials | Lost 7 parts (4n1u2w) 7049 | -8/Materials | Discovered new exit (range 15) 7053 | -8/Materials | Entered Factory 7053 | -7/Factory | Evolved 2 slots: Utility x2 7054 | -7/Factory | Identified exit to Lower Caves 7250 | -7/Factory | Core integrity fell below 50% 7279 | -7/Factory | Lost 9 parts (1p4n4w) 7397 | -7/Factory | Build established: Mutant 7666 | -7/Factory | Core integrity fell below 20% 7696 | -7/Factory | Destroyed by Y-54 Guardian with Gatling Laser Last Messages --------------- 07596_ Acquired 15 matter. 07598_ ALERT: Cargo convoy en route, clear transfer corridor. 07617_ Triggered Shock Trap. 07617_ The floor emits a surge of raw power. 07617_ System corrupted (+1). 07620_ W-25 Informer sends out distress signal. 07649_ Imp. Melee Analysis Suite destroyed. 07649_ Emergency Access malfunctions. 07655_ Flight Unit destroyed. 07658_ Hvy. EM Pulse Gun destroyed. 07667_ Imp. Hover Unit destroyed. 07678_ U-05 Engineer builds a Wall. 07683_ Sneak attack on T-07 Excavator. 07683_ T-07 Excavator destroyed. 07683_ K-01 Serf collects debris. 07684_ Acquired 18 matter. 07684_ K-01 Serf collects debris. 07694_ Axe destroyed. Map ----- +----------------------------------------------------+ | ??????????????????????????# / ??????????? | | ??????????????????????????# # ???????????? | | ??????????????????????????# # ??#???????? | | ?????????????????????????####/######? #???????? | | ?????????????????????????# [ #?? #???????? | | ?????????????????????????# #? ????????? | | ?????????????????????????# "" """ # ??????????? | | ?????????????????????????# "" """ + ????????????? | | ?????????????????????????# "T """ #?????????????? | | ?????????????????????????# "" #?????????????? | | ?????????????????????????# "" #?????????????? | | ?????????????????????????# ! #?????????????? | | ????????????????????????############?????????????? | | ????????????????????????""T""" #g????????????? | | ?????????????????????# #g????????????? | | ?????????????????????# """ """ #?????????????? | | ?????????????????????# """ """ #?????????????? | | ?????????????????????#!* """ """ #???? !???????? | | ????????????????????# !! |%k #??"" ??????? | | ??????????????##################k###u "" ?????? | | ??????????????# YY p "Y "??????? | | ??????????????# "" ?????? | | ??????????????# "" "??????? | | ??????????????# a ?????? | | ??????????????# ^ ???? | | ??????????????# #@#############+######/??? | | ??????????????# # ?????????????????????? | | ??????????????# ?+ ???????????????????? | | ??????????????+ ?# ?????????????????? | | ??????????????# ??+ #????????????????? | | ??????????????# ##??# #????????????????? | | ??????????????+ ????# #????????????????? | | ??????????????###+#?????# #????????????????? | | ????????????????????????# #????????????????? | | ????????????????????????? #????????????????? | | ????????????????????????? !#????????????????? | | ????????????????????????? #????????????????? | | ?????????????????????????########????????????????? | | ?????????????????????????????????????????????????? | | ?????????????????????????????????????????????????? | | ???????????????????????o?????????????????????????? | | ?????????????????????????????????????????????????? | | ?????????????????????????????????????????????????? | | ?????????????????????????????????????????????????? | | ?????????????????????????????????????????????????? | | ?????????????????????????????????????????????????? | | ?????????????????????????????????????????????????? | | ?????????????????????????????????????????????????? | | ?????????????????????????????????????????????????? | | ?????????????????????????????????????????????????? | +----------------------------------------------------+ Best States ------------- Heat Dissipation 34 Energy Generation 14 Energy Capacity 275 Matter Stores 300 Matter Capacity 300 Sight Range 16 Terrain Scan Density 10 Armor Coverage 300 Resistance: EM 15 Melee Speed Boost 20 Evasion (%) 64 Targeting Accuracy 15 Melee Accuracy 6 Recoil Reduction 4 Item Schematics ----------------- None Robot Schematics ------------------ None Fabricated ------------ Nothing Alien Tech Used ----------------- None Achievements -------------- Significant Disruption Challenges ------------ None Game ------ Seed HardenedPhaseEdition Manual? 0 Play Time 00:55:02 Cumulative 13.5 hours Start 2024.04.04 @ 22:11:52 End 2024.04.06 @ 16:17:55 Sessions 5 Manual Loads 0 Difficulty Rogue Special Mode None Game No. 55 Rogue 55 Adventurer 0 Explorer 0 Win Type - Total 0 Types 0/0/0/0/0/0/0/0/0 Lore% 9 Gallery% 17 Achievement% 15 Wizard Run 0 Options --------- Layout 1 ASCII 0 Keyboard 1 Movement Arrows Keybinds 0 Fullscreen 1 Font 24/Smallcaps Map View 50x35 Zoom Use 0% Tactical HUD 1 Map Filters NONE Filters NONE Steam 1 RUN: ed79d9ac-6cfd-4e4f-bae0-0cf46e2a831e